bitfinex/quotes_BTCUSD_20250410
["timestamp","ask_amount","ask_price","bid_price","bid_amount"]
[1744291875027,0.596924,81736.0,81735.0,0.000337]
[1744291875279,0.59694,81731.0,81730.0,0.000337]
[1744291875472,0.71749382,81731.0,81730.0,0.000337]
[1744291875880,1.13189382,81731.0,81730.0,0.000337]
[1744291876516,0.596956,81726.0,81719.0,0.12703076]
[1744291876631,0.71750982,81726.0,81719.0,0.12703076]
[1744291877036,1.11750982,81726.0,81719.0,0.12703076]
[1744291877492,0.4,81726.0,81725.0,0.012573]
[1744291877668,0.53278982,81726.0,81725.0,0.000337]
[1744291878074,0.87278982,81726.0,81725.0,0.000337]
[1744291878249,0.596974,81720.0,81719.0,7.6e-07]
[1744291878493,0.596974,81720.0,81691.0,0.27888852]
[1744291878494,0.012239,81700.0,81691.0,0.27888852]
[1744291878695,1.06071206,81700.0,81691.0,0.27888852]
[1744291879726,0.257077,81687.0,81676.0,0.000337]
[1744291880087,0.257077,81687.0,81686.0,0.00076183]
[1744291880088,0.77763082,81687.0,81686.0,0.00076183]
[1744291881245,0.77767082,81687.0,81686.0,0.00076183]
[1744291881570,1.70567006,81687.0,81686.0,0.00076183]
[1744291881774,1.70567006,81687.0,81681.0,8.3e-07]
[1744291881775,0.257093,81682.0,81681.0,8.3e-07]
[1744291881985,0.25714,81668.0,81651.0,0.0041685]
[1744291882139,0.257156,81662.0,81661.0,0.12750859]
[1744291882342,0.830756,81662.0,81661.0,0.12750859]
[1744291882676,0.257188,81652.0,81651.0,0.0041685]
[1744291882841,0.257188,81652.0,81651.0,0.00429555]
[1744291883234,0.257232,81638.0,81637.0,0.24202412]
[1744291883462,2.56590506,81638.0,81637.0,0.24207618]
[1744291884032,2.56590506,81638.0,81637.0,5.206e-05]
[1744291884192,0.597282,81622.0,81621.0,1e-06]
[1744291884602,0.597337,81605.0,81604.0,0.0003368]
[1744291884808,1.30593006,81605.0,81604.0,0.00046424]
[1744291885725,1.13229006,81605.0,81604.0,0.00046424]
[1744291886001,1.42644265,81605.0,81604.0,0.00046424]
[1744291886368,0.597378,81592.0,81560.0,0.01226]
[1744291886497,0.71793182,81592.0,81558.0,0.29114952]
[1744291886707,0.71793182,81592.0,81563.0,0.245208]
[1744291886908,0.52055382,81592.0,81587.0,0.012256]
[1744291887250,0.4,81592.0,81587.0,0.257392]
[1744291887387,0.4,81592.0,81589.0,0.24513]
[1744291887591,0.77793182,81592.0,81584.0,0.012257]
[1744291888018,0.77793182,81592.0,81566.0,0.245198]
[1744291888198,0.352256,81591.0,81561.0,0.004]
[1744291888418,0.47280982,81591.0,81562.0,0.24521]
[1744291888598,0.47280982,81591.0,81561.0,0.004]
[1744291888799,0.87280982,81591.0,81561.0,0.004]
[1744291889825,0.87280982,81591.0,81590.0,6e-07]
[1744291890025,0.87280982,81591.0,81561.0,0.004]
[1744291890026,0.012258,81574.0,81573.0,2.659e-05]
[1744291890226,0.55738782,81574.0,81573.0,0.00015423]
[1744291890445,1.31178706,81574.0,81573.0,0.00015423]
[1744291890709,0.257472,81562.0,81561.0,0.00351644]
[1744291891017,1.13242506,81562.0,81561.0,0.00351644]
[1744291891221,1.16062416,81562.0,81561.0,0.00351644]
[1744291891431,0.257538,81541.0,81522.0,0.0001685]
[1744291891636,0.97189106,81541.0,81522.0,0.0001685]
[1744291891847,1.31189106,81541.0,81540.0,0.02042605]
[1744291892050,1.35887755,81541.0,81540.0,5e-08]
[1744291892302,1.35887755,81541.0,81522.0,0.0001685]
[1744291892303,0.257567,81532.0,81522.0,0.0001685]
[1744291892501,0.79252006,81532.0,81522.0,0.0001685]
[1744291892618,0.81467331,81532.0,81522.0,0.0001685]
[1744291893470,0.79252006,81532.0,81522.0,0.0001685]
[1744291894499,0.53495306,81532.0,81524.0,0.012266]
[1744291894723,0.88721806,81532.0,81522.0,0.0001685]
[1744291895159,0.88721806,81532.0,81523.0,0.245329]
[1744291895361,0.88721806,81532.0,81522.0,0.0001685]
[1744291895580,0.00046335,81541.0,81535.0,0.245293]
[1744291895764,0.00046335,81541.0,81540.0,0.012263]
[1744291897252,4e-05,81541.0,81540.0,0.006394]
[1744291897449,3.5e-07,81541.0,81540.0,0.14394096]
[1744291897657,0.203057,81582.0,81571.0,0.012259]
[1744291897853,0.1908,81582.0,81573.0,0.012258]
[1744291898055,0.4,81576.0,81575.0,0.012258]
[1744291898222,0.4,81576.0,81570.0,0.245187]
[1744291898421,0.4,81576.0,81562.0,0.245211]
[1744291898422,0.012259,81572.0,81562.0,0.245211]
[1744291898642,0.012258,81575.0,81567.0,0.012259]
[1744291898931,0.245188,81570.0,81562.0,0.257471]
[1744291899148,0.52055382,81576.0,81568.0,0.012259]
[1744291899357,0.4,81576.0,81572.0,0.012259]
[1744291899535,0.4,81576.0,81570.0,0.257444]
[1744291899767,0.012258,81574.0,81559.0,0.012261]
[1744291899990,0.245203,81565.0,81559.0,0.012261]
[1744291900183,0.01226,81563.0,81551.0,0.012262]
[1744291900393,0.13281282,81572.0,81562.0,0.01226]
[1744291900609,0.0003378,81573.0,81572.0,0.012259]
[1744291900831,0.0003378,81573.0,81567.0,0.045]
[1744291901041,0.24519,81570.0,81563.0,0.245207]
[1744291901275,0.12055382,81569.0,81558.0,0.012261]
[1744291901482,0.12055382,81569.0,81563.0,0.245206]
[1744291901635,0.12055382,81569.0,81564.0,0.245204]
[1744291901845,0.0003378,81573.0,81565.0,0.01226]
[1744291902023,0.0003378,81573.0,81572.0,0.257441]
[1744291902831,0.0003378,81573.0,81572.0,0.22445661]
[1744291903034,0.0003378,81573.0,81572.0,0.23671561]
[1744291903314,0.0003378,81573.0,81572.0,0.23916711]
[1744291903537,0.0003378,81573.0,81569.0,0.245189]
[1744291903775,0.2455168,81573.0,81567.0,0.245195]
[1744291903976,0.0003378,81573.0,81572.0,0.257441]
[1744291904207,0.245197,81568.0,81565.0,0.00012771]
[1744291904384,0.245192,81569.0,81565.0,0.00012771]
[1744291904557,0.12055382,81569.0,81566.0,0.01226]
[1744291904763,0.0003378,81573.0,81572.0,0.257441]
[1744291904967,0.0003378,81573.0,81569.0,0.24519]
[1744291905168,0.0003378,81573.0,81568.0,0.245192]
[1744291905169,0.0003378,81573.0,81570.0,0.245186]
[1744291905717,0.0003378,81573.0,81571.0,0.245182]
[1744291905867,0.0003378,81573.0,81570.0,0.257445]
[1744291906069,0.0003378,81573.0,81568.0,0.25745]
[1744291906277,0.245191,81569.0,81565.0,0.00012771]
[1744291906460,0.01226,81566.0,81565.0,0.00012771]
[1744291906663,0.97013197,81566.0,81565.0,7.1e-07]
[1744291906871,1.00711631,81566.0,81565.0,7.1e-07]
[1744291907078,1.00711631,81566.0,81531.0,0.004]
[1744291907079,0.257567,81532.0,81531.0,0.004]
[1744291907283,0.56892082,81532.0,81531.0,0.004]
[1744291907477,1.34576284,81532.0,81501.0,0.004]
[1744291907682,0.71814882,81523.0,81501.0,0.004]
[1744291907884,1.15499084,81523.0,81501.0,0.004]
[1744291908079,1.16953169,81523.0,81501.0,0.004]
[1744291908280,1.68996428,81523.0,81501.0,0.004]
[1744291908575,1.68996428,81523.0,81522.0,0.00059185]
[1744291908817,1.70120514,81523.0,81522.0,8.5e-07]
[1744291909014,1.70120514,81523.0,81501.0,0.004]
[1744291909015,0.597639,81509.0,81501.0,0.004]
[1744291909229,0.71819282,81509.0,81501.0,0.004]
[1744291909441,0.85316626,81509.0,81508.0,9.8e-07]
[1744291909654,0.85316626,81509.0,81458.0,0.0001685]
[1744291909655,0.34,81502.0,81458.0,0.0001685]
[1744291909829,0.012275,81462.0,81458.0,0.0001685]
[1744291910059,0.012276,81459.0,81458.0,0.0001685]
[1744291910251,0.012276,81459.0,81448.0,0.012277]
[1744291910252,0.03368435,81461.0,81452.0,0.012277]
[1744291910561,0.012276,81459.0,81458.0,0.00011487]
[1744291910769,0.03368435,81461.0,81458.0,0.00011487]
[1744291910920,0.03368435,81461.0,81446.0,0.257836]
[1744291910921,0.02244349,81460.0,81438.0,0.23238997]
[1744291911155,0.02244349,81460.0,81441.0,0.257854]
[1744291911334,0.03368435,81459.0,81445.0,0.012278]
[1744291911532,0.03368435,81458.0,81445.0,0.012278]
[1744291911771,0.14299731,81457.0,81453.0,0.245539]
[1744291911928,0.02244349,81457.0,81456.0,0.012276]
[1744291912283,0.12055382,81457.0,81449.0,0.0001689]
[1744291912404,0.02251674,81457.0,81445.0,0.34]
[1744291912602,0.00012687,81465.0,81453.0,0.012277]
[1744291912824,0.00012687,81465.0,81424.0,0.2501338]
[1744291912825,0.257834,81448.0,81424.0,0.2501338]
[1744291913045,0.257834,81448.0,81425.0,0.02878325]
[1744291913046,0.2428138,81448.0,81425.0,0.02878325]
[1744291913297,0.2428138,81448.0,81412.0,0.0485]
[1744291913298,0.012279,81439.0,81417.0,0.012282]
[1744291913538,0.012279,81438.0,81419.0,0.012282]
[1744291913746,0.012278,81440.0,81419.0,0.012282]
[1744291913961,0.012278,81445.0,81422.0,0.012281]
[1744291914154,0.13283182,81444.0,81424.0,0.012281]
[1744291914401,0.12055382,81440.0,81436.0,0.012279]
[1744291914594,0.12055382,81440.0,81433.0,0.01228]
[1744291914776,0.12055382,81440.0,81437.0,0.012279]
[1744291915075,0.012277,81452.0,81430.0,0.01228]
[1744291915300,0.12055382,81451.0,81430.0,0.01228]
[1744291915499,0.13283082,81451.0,81423.0,0.34]
[1744291915702,0.012279,81439.0,81424.0,0.12055382]
[1744291915923,0.012278,81444.0,81425.0,0.01454085]
[1744291916068,0.257841,81446.0,81424.0,0.012281]
[1744291916282,0.012278,81442.0,81411.0,0.01854085]
[1744291916487,0.012279,81435.0,81411.0,0.004]
[1744291916692,0.01228,81433.0,81411.0,0.004]
[1744291916890,0.012279,81435.0,81410.0,0.01454085]
[1744291917206,0.245615,81428.0,81408.0,0.012283]
[1744291917426,0.12055382,81428.0,81407.0,0.352283]
[1744291917607,0.01228,81428.0,81407.0,0.352283]
[1744291917770,0.01228,81428.0,81408.0,0.01454085]
[1744291917971,0.01228,81428.0,81400.0,0.01454085]
[1744291917972,0.257905,81425.0,81400.0,0.01454085]
[1744291918211,0.257905,81425.0,81389.0,0.245732]
[1744291918212,0.012282,81419.0,81401.0,0.12055382]
[1744291918428,0.012282,81415.0,81392.0,0.012286]
[1744291918650,0.012283,81413.0,81390.0,0.012286]
[1744291918875,0.4,81412.0,81401.0,0.012284]
[1744291919076,0.4,81412.0,81411.0,0.012283]
[1744291919395,0.4,81412.0,81402.0,0.257978]
[1744291919396,0.52055382,81412.0,81402.0,0.012284]
[1744291919755,0.4,81412.0,81404.0,0.012284]
[1744291919957,0.4,81412.0,81395.0,0.012285]
[1744291919958,0.12055382,81411.0,81393.0,0.245721]
[1744291920155,0.012283,81409.0,81383.0,0.24575]
[1744291920372,0.012284,81401.0,81382.0,0.012287]
[1744291920512,0.012284,81401.0,81381.0,0.004]
[1744291920513,0.12055382,81400.0,81381.0,0.004]
[1744291920730,0.12055382,81400.0,81387.0,0.012286]
[1744291921011,0.12055382,81400.0,81383.0,0.012287]
[1744291921188,0.012285,81398.0,81381.0,0.004]
[1744291921401,0.12055382,81397.0,81381.0,0.262043]
[1744291921541,0.12055382,81397.0,81396.0,0.012285]
[1744291921744,0.12055382,81397.0,81387.0,0.258024]
[1744291921947,0.12055382,81396.0,81392.0,0.012286]
[1744291922150,4e-05,81401.0,81398.0,0.012285]
[1744291922353,0.12055382,81400.0,81390.0,0.012286]
[1744291922668,4e-05,81401.0,81400.0,0.012285]
[1744291922868,4e-05,81401.0,81388.0,0.245734]
[1744291923069,0.012285,81397.0,81381.0,0.004]
[1744291923270,0.012286,81393.0,81381.0,0.004]
[1744291923475,0.012285,81397.0,81381.0,0.004]
[1744291923476,0.12055382,81392.0,81381.0,0.004]
[1744291923857,0.012286,81391.0,81381.0,0.004]
[1744291924065,0.12055382,81390.0,81381.0,0.004]
[1744291924274,0.1338377,81390.0,81381.0,0.004]
[1744291924484,0.12055382,81390.0,81381.0,0.004]
[1744291924610,0.1206805,81390.0,81381.0,0.004]
[1744291924962,0.1206805,81390.0,81386.0,0.012287]
[1744291925163,0.1206805,81390.0,81383.0,0.012287]
[1744291925164,0.12055382,81389.0,81383.0,0.012287]
[1744291925363,0.12055382,81389.0,81382.0,0.245754]
[1744291925589,0.12055382,81389.0,81388.0,0.012286]
[1744291925722,0.12055382,81389.0,81387.0,0.245739]
[1744291925906,0.12055382,81388.0,81387.0,0.245739]
[1744291926106,0.12055382,81388.0,81382.0,0.258041]
[1744291926305,0.00012668,81390.0,81382.0,0.258041]
[1744291926306,0.00012668,81390.0,81389.0,0.012286]
[1744291926510,0.1206805,81390.0,81360.0,0.0001689]
[1744291926753,0.00012668,81390.0,81389.0,0.012286]
[1744291926954,6.8e-07,81390.0,81389.0,0.012286]
[1744291927158,6.8e-07,81390.0,81389.0,0.352286]
[1744291928000,6.8e-07,81390.0,81389.0,0.598019]
[1744291928137,6.8e-07,81390.0,81389.0,0.71857282]
[1744291928746,4e-05,81392.0,81391.0,0.012286]
[1744291929081,0.01228,81428.0,81392.0,0.42902453]
[1744291929340,0.4,81427.0,81400.0,0.597985]
[1744291929513,0.4,81427.0,81424.0,0.257908]
[1744291929712,0.4,81427.0,81424.0,0.245627]
[1744291929944,0.05963166,81440.0,81424.0,0.257908]
[1744291930118,0.245583,81439.0,81423.0,0.012281]
[1744291930370,0.012279,81438.0,81424.0,0.012281]
[1744291930570,0.012279,81435.0,81421.0,0.257916]
[1744291930705,0.012279,81437.0,81424.0,0.012281]
[1744291930903,0.012279,81437.0,81414.0,0.245655]
[1744291930904,0.00016778,81425.0,81414.0,0.245655]
[1744291931227,0.00016778,81425.0,81402.0,0.245694]
[1744291931228,0.012282,81417.0,81402.0,0.245694]
[1744291931442,0.12055382,81417.0,81412.0,0.012283]
[1744291931643,0.12055382,81416.0,81385.0,0.0457]
[1744291931977,0.12055382,81416.0,81361.0,0.005]
[1744291931978,0.012285,81398.0,81382.0,0.012287]
[1744291932264,0.37854782,81397.0,81384.0,0.012287]
[1744291932586,0.37854782,81397.0,81393.0,0.012286]
[1744291932587,0.4,81396.0,81393.0,0.012286]
[1744291932790,0.02240389,81396.0,81395.0,0.012285]
[1744291933303,0.02240389,81416.0,81406.0,0.257965]
[1744291933506,0.37849282,81415.0,81402.0,0.012284]
[1744291933639,0.12055382,81415.0,81403.0,0.012284]
[1744291933860,0.012282,81414.0,81399.0,0.012285]
[1744291934062,0.012283,81411.0,81394.0,0.012285]
[1744291934237,0.257966,81406.0,81392.0,0.245723]
[1744291934447,0.257972,81404.0,81393.0,0.012286]
[1744291934641,0.12055382,81403.0,81391.0,0.258012]
[1744291934841,0.012285,81399.0,81385.0,0.245745]
[1744291935044,0.52055382,81403.0,81387.0,0.245738]
[1744291935045,0.12055382,81398.0,81387.0,0.245738]
[1744291935302,0.12055382,81398.0,81394.0,0.012285]
[1744291935490,0.12055382,81398.0,81396.0,0.245712]
[1744291935709,0.12055382,81398.0,81396.0,0.257997]
[1744291936023,0.12055382,81398.0,81395.0,0.00042431]
[1744291936801,0.4,81403.0,81402.0,0.257978]
[1744291937103,4e-05,81411.0,81410.0,0.257953]
[1744291937422,4e-05,81411.0,81410.0,0.14822948]
[1744291937720,4e-05,81411.0,81410.0,0.16051248]
[1744291938570,4e-05,81411.0,81410.0,0.2810663]
[1744291939221,1e-06,81417.0,81416.0,0.61247385]
[1744291939443,1e-06,81417.0,81416.0,0.73302767]
[1744291939653,4e-05,81425.0,81424.0,0.27244885]
[1744291939849,4e-05,81425.0,81424.0,0.73300267]
[1744291940231,4e-05,81451.0,81450.0,0.257826]
[1744291941203,0.00016785,81451.0,81450.0,0.257826]
[1744291941991,0.12072167,81451.0,81437.0,0.245587]
[1744291942201,0.12072167,81451.0,81447.0,0.012277]
[1744291942419,0.12072167,81451.0,81448.0,0.245555]
[1744291942719,0.00016785,81451.0,81449.0,0.257827]
[1744291942922,0.00016785,81451.0,81450.0,0.012277]
[1744291943122,0.00016785,81451.0,81442.0,0.245571]
[1744291943326,0.12072167,81451.0,81437.0,0.257865]
[1744291943529,0.12072167,81451.0,81445.0,0.245561]
[1744291943743,0.12055382,81450.0,81428.0,0.01228]
[1744291943897,0.012278,81443.0,81429.0,0.245612]
[1744291944083,0.12055382,81442.0,81433.0,0.2456]
[1744291944437,0.12055382,81442.0,81431.0,0.01228]
[1744291944665,0.12055382,81442.0,81427.0,0.245616]
[1744291944900,0.4,81441.0,81429.0,0.24561]
[1744291945151,0.12055382,81440.0,81429.0,0.25789]
[1744291945371,0.12055382,81440.0,81425.0,0.257905]
[1744291945603,0.02271993,81439.0,81430.0,0.01228]
[1744291945829,0.4,81438.0,81430.0,0.257886]
[1744291946055,0.02271993,81437.0,81430.0,0.257887]
[1744291946283,0.02271993,81437.0,81429.0,0.24561]
[1744291946564,0.245614,81429.0,81417.0,0.245648]
[1744291946796,0.01228,81430.0,81392.0,0.012286]
[1744291946797,0.012283,81408.0,81392.0,0.012286]
[1744291947073,0.24567,81410.0,81398.0,0.245704]
[1744291947306,0.24567,81410.0,81393.0,0.258004]
[1744291947307,0.36623282,81407.0,81393.0,0.258004]
[1744291947538,0.012284,81403.0,81381.0,0.004]
[1744291947765,0.02271993,81409.0,81381.0,0.004]
[1744291947766,0.245748,81384.0,81381.0,0.004]
[1744291947996,0.12055382,81383.0,81381.0,0.004]
[1744291948224,0.02271993,81382.0,81381.0,0.004]
[1744291948482,0.12055382,81382.0,81381.0,0.00442431]
[1744291948730,0.37859482,81382.0,81381.0,0.00442431]
[1744291949206,0.12055382,81382.0,81381.0,0.00442431]
[1744291949424,0.13284082,81382.0,81381.0,0.00442431]
[1744291949673,0.12055382,81382.0,81381.0,0.00442431]
[1744291950174,0.68307431,81410.0,81387.0,0.012286]
[1744291950440,1.38483382,81391.0,81381.0,0.00442431]
[1744291950689,0.12055382,81390.0,81381.0,0.00442431]
[1744291950890,0.00036851,81386.0,81381.0,0.00442431]
[1744291951125,0.352287,81382.0,81381.0,0.00442431]
[1744291951339,0.46055382,81382.0,81381.0,0.00442431]
[1744291951773,0.47284082,81382.0,81381.0,0.00442431]
[1744291952003,0.60781426,81382.0,81381.0,0.00442431]
[1744291952257,0.65701426,81382.0,81381.0,0.00442431]
[1744291952728,0.65701426,81382.0,81381.0,0.00442431]
[1744291953008,1.07141279,81382.0,81381.0,0.00442431]
[1744291953202,0.245788,81371.0,81366.0,0.0001689]
[1744291953471,0.12055382,81370.0,81367.0,0.245799]
[1744291953722,0.12055382,81370.0,81366.0,0.0124589]
[1744291953723,0.12055382,81370.0,81366.0,0.0001689]
[1744291954932,0.4,81369.0,81367.0,0.258088]
[1744291955201,0.4,81369.0,81367.0,0.245799]
[1744291955513,0.12055382,81368.0,81366.0,0.0001689]
[1744291955969,0.34,81379.0,81366.0,0.0001689]
[1744291956219,0.34,81376.0,81367.0,0.02279081]
[1744291956491,0.34,81374.0,81367.0,0.02279081]
[1744291956753,0.52055382,81373.0,81368.0,0.02279081]
[1744291956996,0.52055382,81373.0,81366.0,0.0001689]
[1744291956997,0.52055382,81373.0,81369.0,0.02279081]
[1744291957665,0.34,81372.0,81370.0,0.02279081]
[1744291957870,0.047,81395.0,81380.0,0.24576]
[1744291958100,0.047,81395.0,81372.0,0.012289]
[1744291958101,0.12055382,81381.0,81374.0,0.245776]
[1744291958303,0.1978202,81400.0,81379.0,0.258051]
[1744291958454,0.16277115,81394.0,81381.0,0.258044]
[1744291958665,0.16277115,81394.0,81381.0,0.37859782]
[1744291958866,0.16277115,81394.0,81381.0,0.258044]
[1744291959220,0.16277115,81394.0,81381.0,0.26942953]
[1744291959429,0.16277115,81394.0,81381.0,0.29219819]
[1744291959713,0.16277115,81394.0,81381.0,0.28644099]
[1744291960028,0.16277115,81394.0,81393.0,0.258007]
[1744291960365,0.16277115,81394.0,81393.0,0.28077566]
[1744291960997,7.7e-07,81404.0,81403.0,0.012284]
[1744291961230,0.16483718,81424.0,81420.0,0.012281]
[1744291961546,0.16483718,81424.0,81414.0,0.012282]
[1744291961749,0.16483718,81424.0,81418.0,0.245645]
[1744291961951,0.16483718,81424.0,81421.0,0.245636]
[1744291962159,0.012281,81422.0,81394.0,0.012285]
[1744291962372,0.12055382,81421.0,81405.0,0.012284]
[1744291962578,0.16483718,81424.0,81411.0,0.257948]
[1744291962781,0.012282,81419.0,81400.0,0.012285]
[1744291963071,0.12055382,81418.0,81404.0,0.245686]
[1744291963275,0.12055382,81418.0,81400.0,0.257983]
[1744291963472,0.012282,81414.0,81393.0,0.245719]
[1744291963688,0.012282,81414.0,81383.0,0.02276425]
[1744291963689,0.245689,81404.0,81386.0,0.245742]
[1744291963889,0.012283,81411.0,81387.0,0.012286]
[1744291964038,0.245643,81419.0,81399.0,0.012285]
[1744291964296,0.20287653,81430.0,81410.0,0.012283]
[1744291964297,0.16496496,81424.0,81410.0,0.012283]
[1744291964466,0.16496496,81424.0,81423.0,0.012281]
[1744291964664,0.16496496,81424.0,81423.0,0.13283482]
[1744291965073,0.20287653,81430.0,81424.0,0.257908]
[1744291965267,0.20287653,81430.0,81424.0,0.37846182]
[1744291965841,0.20287653,81430.0,81424.0,0.012281]
[1744291966040,0.004,81439.0,81424.0,0.012281]
[1744291966464,0.004,81439.0,81422.0,0.257912]
[1744291966766,0.004,81439.0,81424.0,0.012281]
[1744291966961,0.004,81439.0,81424.0,0.13283482]
[1744291967364,0.004,81439.0,81424.0,0.245627]
[1744291967564,0.004,81439.0,81424.0,0.37846182]
[1744291967799,6e-07,81425.0,81424.0,0.37846182]
[1744291968016,6e-07,81425.0,81424.0,0.39300267]
[1744291968260,0.004,81439.0,81438.0,0.257864]
[1744291968464,0.004,81439.0,81438.0,0.37841782]
[1744291968624,0.004,81439.0,81438.0,0.257864]
[1744291969372,0.004,81439.0,81422.0,0.257912]
[1744291969571,0.004,81439.0,81424.0,0.012281]
[1744291969772,0.004,81439.0,81438.0,0.257864]
[1744291969910,0.004,81439.0,81430.0,0.01228]
[1744291970114,0.012279,81436.0,81418.0,0.245643]
[1744291970353,0.016279,81439.0,81413.0,0.012283]
[1744291970354,0.004,81439.0,81427.0,0.01228]
[1744291970571,0.004,81439.0,81438.0,0.257864]
[1744291970787,0.004,81439.0,81428.0,0.12055382]
[1744291970788,0.004,81439.0,81422.0,0.012281]
[1744291970977,0.004,81439.0,81428.0,0.01228]
[1744291971203,0.004,81439.0,81436.0,0.012279]
[1744291971399,0.004,81439.0,81438.0,0.012279]
[1744291971533,0.004,81439.0,81438.0,0.13283282]
[1744291972121,0.004,81439.0,81438.0,0.012279]
[1744291972336,0.004,81439.0,81437.0,0.02272545]
[1744291972537,0.004,81439.0,81438.0,0.257864]
[1744291972992,0.004,81439.0,81438.0,0.37841782]
[1744291974325,0.0003384,81444.0,81443.0,0.257848]
[1744291974547,0.0003384,81444.0,81443.0,0.37840182]
[1744291975156,0.0003384,81444.0,81443.0,0.41566329]
[1744291975310,0.0003384,81458.0,81457.0,0.257804]
[1744291975529,8e-07,81461.0,81460.0,0.257794]
[1744291975728,5.6e-07,81461.0,81460.0,0.37834782]
[1744291975941,1.6e-07,81469.0,81468.0,0.012274]
[1744291976143,8.6e-07,81469.0,81468.0,0.7300447]
[1744291976367,6e-07,81474.0,81473.0,0.27229485]
[1744291976539,0.0003384,81490.0,81473.0,0.27229485]
[1744291976540,0.0003384,81490.0,81489.0,0.257702]
[1744291976740,0.00046603,81490.0,81489.0,0.37825582]
[1744291976931,0.00046603,81490.0,81489.0,0.257702]
[1744291977134,0.00046603,81490.0,81489.0,0.37825582]
[1744291977341,0.00046603,81490.0,81489.0,0.38724004]
[1744291977546,4.3e-07,81499.0,81498.0,0.257674]
[1744291977762,4.3e-07,81499.0,81498.0,0.37822782]
[1744291979266,3e-08,81529.0,81518.0,0.012267]
[1744291979500,0.0003378,81565.0,81555.0,0.257494]
[1744291979911,0.0003378,81565.0,81555.0,0.245233]
[1744291980083,0.28133734,81556.0,81555.0,0.245233]
[1744291980286,0.28133734,81556.0,81548.0,0.245249]
[1744291980287,0.00042562,81556.0,81540.0,0.68307431]
[1744291980461,0.00042562,81556.0,81553.0,0.245236]
[1744291980882,0.00042562,81556.0,81554.0,0.245234]
[1744291981214,0.00042562,81556.0,81554.0,0.257495]
[1744291981425,0.00042562,81556.0,81555.0,0.13526698]
[1744291981579,0.00042562,81556.0,81555.0,0.13281482]
[1744291981785,0.00042562,81556.0,81555.0,0.012261]
[1744291982209,0.00042562,81556.0,81553.0,0.245236]
[1744291982425,0.00042562,81556.0,81546.0,0.245259]
[1744291982683,0.00042562,81556.0,81533.0,0.012264]
[1744291982684,0.00042562,81556.0,81540.0,0.245276]
[1744291983010,0.00042562,81556.0,81535.0,0.245293]
[1744291983214,0.245333,81522.0,81490.0,0.68307431]
[1744291983460,0.12055382,81521.0,81493.0,0.01227]
[1744291983615,0.4,81520.0,81504.0,0.245386]
[1744291983818,0.012267,81513.0,81511.0,0.1659913]
[1744291984016,0.12055382,81512.0,81511.0,0.1659913]
[1744291984235,0.71818382,81512.0,81511.0,0.1659913]
[1744291984444,1.29173088,81512.0,81511.0,0.1191913]
[1744291984734,1.29173088,81512.0,81505.0,0.12173704]
[1744291984735,0.597649,81506.0,81505.0,0.12173704]
[1744291984940,0.597649,81506.0,81502.0,0.23903061]
[1744291984941,0.61219885,81503.0,81502.0,0.23903061]
[1744291985126,0.61222385,81495.0,81494.0,0.27677229]
[1744291985398,0.61224585,81488.0,81487.0,9.9e-07]
[1744291985548,1.13779967,81488.0,81487.0,9.9e-07]
[1744291985752,1.13779967,81488.0,81472.0,0.46450985]
[1744291985753,0.597727,81481.0,81472.0,0.46450985]
[1744291985918,2.4655402,81481.0,81480.0,3.9e-07]
[1744291986117,2.4655402,81481.0,81480.0,0.00012802]
[1744291986333,2.4655402,81481.0,81431.0,0.245606]
[1744291986334,0.257851,81442.0,81426.0,0.0472]
[1744291986527,0.12055382,81442.0,81441.0,0.0044257]
[1744291986955,0.13509467,81442.0,81441.0,0.0044257]
[1744291987153,0.48737267,81442.0,81441.0,0.0044257]
[1744291987438,0.92738897,81442.0,81441.0,0.0044257]
[1744291987841,0.87509467,81442.0,81441.0,0.0044257]
[1744291988247,0.88737267,81442.0,81441.0,0.0044257]
[1744291989275,0.87509467,81442.0,81441.0,0.0044257]
[1744291989478,0.86055382,81442.0,81441.0,0.0044257]
[1744291989990,0.74,81442.0,81441.0,0.0044257]
[1744291990198,0.86055382,81442.0,81441.0,0.0044257]
[1744291990629,0.4,81442.0,81441.0,0.0044257]
[1744291991314,0.0001692,81475.0,81454.0,0.245535]
[1744291991552,0.012275,81466.0,81441.0,0.0495257]
[1744291991757,0.34,81464.0,81442.0,0.00245565]
[1744291991966,0.34,81460.0,81441.0,0.0495257]
[1744291992204,0.012277,81451.0,81441.0,0.0495257]
[1744291992428,0.34,81458.0,81442.0,0.012278]
[1744291992651,0.257763,81470.0,81442.0,0.26030571]
[1744291992872,0.257763,81470.0,81441.0,0.0495257]
[1744291992873,0.12055382,81458.0,81445.0,0.245564]
[1744291993438,0.12055382,81458.0,81441.0,0.0618037]
[1744291993439,0.012272,81483.0,81455.0,0.012276]
[1744291993640,0.12055382,81474.0,81459.0,0.245521]
[1744291993815,0.245501,81466.0,81441.0,0.2950987]
[1744291994015,0.012274,81469.0,81441.0,0.2950987]
[1744291994016,0.12055382,81465.0,81449.0,0.245551]
[1744291994221,0.05,81507.0,81470.0,0.012274]
[1744291994420,0.68307431,81510.0,81473.0,0.245478]
[1744291994421,0.2454,81500.0,81473.0,0.245478]
[1744291994753,1.26392,81514.0,81473.0,0.245478]
[1744291994754,0.012267,81513.0,81474.0,0.108373]
[1744291994954,0.012269,81503.0,81474.0,0.108373]
[1744291995159,0.012268,81509.0,81474.0,0.23138102]
[1744291995160,0.4,81502.0,81474.0,0.23138102]
[1744291995291,0.34,81498.0,81474.0,0.0961]
[1744291995666,0.645394,81502.0,81474.0,0.0961]
[1744291995819,0.4,81502.0,81474.0,0.11082747]
[1744291995995,0.4,81502.0,81474.0,0.108373]
[1744291996801,0.4,81502.0,81474.0,0.23138108]
[1744291997002,0.4,81502.0,81474.0,0.108373]
[1744291997198,0.4,81502.0,81474.0,0.23138109]
[1744291997440,0.4,81502.0,81474.0,0.108373]
[1744291998187,0.4,81502.0,81474.0,0.11082726]
[1744291998869,0.245408,81497.0,81474.0,0.09451367]
[1744291999070,0.012269,81501.0,81474.0,0.09451367]
[1744291999274,0.257666,81501.0,81474.0,0.10678667]
[1744291999677,0.4,81502.0,81474.0,0.10678667]